Cogmind - Beta 13 @@@ ROGUE MODE // 2024.07.17 @ 22:09:05 Player: harambe Result: Destroyed by G-67 Veteran with Plasma Rifle Performance ------------- Evolutions (6) 3000 Regions Visited (9) 1800 Robots Destroyed (49) 245 Value Destroyed (2163) 2163 Prototype IDs (5) 100 Alien Tech Used (0) 0 Bonus (715) 715 TOTAL SCORE: 8023 Bonus ------- High Alert Combat Kills 375 Follower Combat Kills 40 Aligned with FarCom 300 Cogmind --------- Core Integrity 0/1150 Matter 221/300 Energy 100/100 System Corruption 7% Temperature Cool (76) Movement Core (50) Location -4/Factory Parts ------- > --- POWER (1) -------- (None) > --- PROPULSION (5) --- (None) > --- UTILITY (10) ----- (None) > --- WEAPON (3) ------- (None) > --- INVENTORY (5) ---- Light Ion Engine Light Fission Core Micro Fission Core Improved Heat Sink Heavy Machine Gun Peak State ------------ > --- POWER ------------ Micro Fission Core > --- PROPULSION ------- Armored Huge Wheel Armored Huge Wheel > --- UTILITY ---------- Advanced Cryofiber Web Advanced Heat Sink Advanced Heat Sink Lightpack 2.0 Trap Scanner Advanced Sensor Array Advanced Terrain Scanner Focal Shield > --- WEAPON ----------- Heavy Neutron Cannon Gauss Rifle Gauss Rifle > --- INVENTORY -------- Light Ion Engine Micro Nuclear Core Light Fission Core Micro Fission Core Micro Fission Core Antimatter Reactor Armored Huge Wheel Armored Huge Wheel Improved Gyrokinetic Inverter Improved Heat Sink Advanced Heat Sink Medium Storage Unit Large Storage Unit Large Storage Unit Improved Terrain Scanner Target Analyzer EM Disruption Field System Shield Improved Corruption Screen Recalibrator Proton Cannon Heavy Neutron Cannon Heavy Neutron Cannon Heavy Neutron Cannon Heavy Neutron Cannon Heavy Assault Rifle Hypervelocity Gauss Rifle Heavy Machine Gun Heavy Flak Cannon Hardcell Cannon Axe [Rating: 118] Favorites ----------- Power Ion Engine Engine Ion Engine Power Core Light Nuclear Core Propulsion Compact Wheel Leg Carbon-fiber Leg Wheel Compact Wheel Utility Lightpack 2.0 Device Advanced Sensor Array Storage Lightpack 2.0 Processor Signal Interpreter Protection Improved Light Armor Plating Weapon Gauss Rifle Energy Gun Medium Laser Energy Cannon Heavy Neutron Cannon Ballistic Gun Gauss Rifle Launcher Improved Grenade Launcher Special Weapon Enhanced Flamer Slashing Weapon Axe Build | -11 -10 -10 -10 -9 -8 -7 -6 -5 -4 ------- Run | Yrd Mat Min Exi Min Mat Fac Fac Fac Fac Slots Evolved 12 | . . . . . 4 2 2 2 2 Power . | . . . . . . . . . . Propulsion 3 | . . . . . 2 . . . 1 Utility 8 | . . . . . 2 2 1 2 1 Weapon 1 | . . . . . . . 1 . . Parts Attached 78 | . 4 1 4 2 5 8 27 4 23 Power 7 | . . . . . . 1 3 . 3 Engine 3 | . . . . . . . 1 . 2 Core 4 | . . . . . . 1 2 . 1 Reactor . | . . . . . . . . . . Propulsion 14 | . 2 . 2 . 2 2 2 . 4 Treads . | . . . . . . . . . . Leg 1 | . . . . . . . . . 1 Wheel 13 | . 2 . 2 . 2 2 2 . 3 Hover . | . . . . . . . . . . Flight . | . . . . . . . . . . Utility 31 | . 2 1 1 2 1 5 9 2 8 Device 11 | . 1 . . . . . 2 1 7 Storage 6 | . 1 . 1 2 1 . . 1 . Processor 3 | . . 1 . . . 1 . . 1 Hackware . | . . . . . . . . . . Protection 11 | . . . . . . 4 7 . . Artifact . | . . . . . . . . . . Weapon 26 | . . . 1 . 2 . 13 2 8 Energy Gun 4 | . . . . . . . 3 1 . Energy Cannon 5 | . . . . . . . 1 1 3 Ballistic Gun 10 | . . . 1 . 1 . 5 . 3 Ballistic Cannon . | . . . . . . . . . . Launcher 3 | . . . . . 1 . 1 . 1 Special Weapon 2 | . . . . . . . 2 . . Impact Weapon . | . . . . . . . . . . Slashing Weapon 2 | . . . . . . . 1 . 1 Piercing Weapon . | . . . . . . . . . . Special Melee Weapon . | . . . . . . . . . . Unidentified Prototypes 3 | . . . 1 . 1 . . . 1 Parts Lost 42 | . . . . . . 1 18 . 23 Power 5 | . . . . . . . 2 . 3 Propulsion 8 | . . . . . . . 2 . 6 Utility 16 | . . . . . . 1 8 . 7 Weapon 13 | . . . . . . . 6 . 7 Highest Loss Streak 12 | . . . . . . 1 12 . 8 To Critical Strikes 2 | . . . . . . . 1 . 1 Average Slot Usage (%) 78 | . 99 100 97 85 71 66 66 70 62 Engine 6 | . 14 14 14 14 9 . 1 5 3 Core 2 | . . . . . . 7 4 . 1 Leg 1 | . 16 . . . . . . . 2 Wheel 20 | . 11 28 28 28 36 22 12 11 8 Device 6 | . 4 11 . . . . 4 11 20 Storage 10 | . 23 14 14 14 8 7 6 11 6 Processor 6 | . . 2 14 14 9 7 6 5 3 Protection 4 | . . . . . . 12 9 5 2 Energy Gun 5 | . 14 14 11 . . . . 5 2 Energy Cannon 1 | . . . . . . . 1 2 4 Ballistic Gun 10 | . 14 14 14 14 9 7 12 8 5 Naked Turns 49 | . . . . . . . . . 49 Heaviest Build 47 | 14 15 15 25 25 20 35 39 45 47 Greatest Support 64 | 20 26 26 32 32 64 64 56 56 56 Greatest Overweight (x) . | . . . . . . . . . . Average Overweight (x) . | . . . . . . . . . . Largest Inventory Capacity 40 | . 8 8 10 15 40 40 40 40 40 Average Capacity 27 | . 8 8 9 10 39 40 40 40 36 Most Carried 40 | . 8 8 10 10 23 40 40 30 37 Average Carried 22 | . 7 8 9 9 15 35 35 28 30 Final Capacity 40 | 8 8 8 10 10 40 40 40 40 5 Final Carried 38 | 6 8 8 10 10 23 38 30 30 5 Class Distribution -------------------- 40% | Mutant 29% | Hauler-Mutant 26% | Hauler-Skirmisher 4% | Hauler-Tank Dominant Class ---------------- Mutant | -10/Materials Mutant | -10/Mines Mutant | -10/Exiles Mutant | -9/Mines Hauler-Mutant | -8/Materials Hauler-Mutant | -7/Factory Hauler-Skirmisher | -6/Factory Hauler-Skirmisher | -5/Factory Hauler-Skirmisher | -4/Factory Resources | -11 -10 -10 -10 -9 -8 -7 -6 -5 -4 ----------- Run | Yrd Mat Min Exi Min Mat Fac Fac Fac Fac Matter Collected 1210 | 185 . 94 . 27 45 131 552 . 176 Remotely . | . . . . . . . . . . Salvage Created 2118 | . . 100 . . 256 666 906 . 190 Parts 128 | . . 2 . . 20 50 43 . 13 Haulers Intercepted 1 | . . . . . 1 . . . . Recyclers Shooed 1 | . . . . . . . 1 . . Parts Field Recycled . | . . . . . . . . . . Retrieved Matter . | . . . . . . . . . . Parts Self-Destructed . | . . . . . . . . . . Prevented . | . . . . . . . . . . Kills | -11 -10 -10 -10 -9 -8 -7 -6 -5 -4 ------- Run | Yrd Mat Min Exi Min Mat Fac Fac Fac Fac Combat Hostiles Destroyed 42 | . . 2 . . 4 11 17 . 8 Melee 1 | . . . . . . . 1 . . Guns 28 | . . 2 . . 4 9 9 . 4 Cannons 3 | . . . . . . . 1 . 2 AOE 6 | . . . . . . 2 3 . 1 Classes Destroyed 19 | . . 1 . . 3 7 6 . 2 Worker 5 | . . . . . . 4 1 . . Builder 2 | . . . . . . . 2 . . Tunneler 1 | . . . . . . 1 . . . Hauler 1 | . . . . . 1 . . . . Recycler 1 | . . . . . . . 1 . . Operator 1 | . . . . . . 1 . . . Watcher 2 | . . . . . . 2 . . . Swarmer 3 | . . . . . . . 3 . . Saboteur 1 | . . . . . . . 1 . . Grunt 11 | . . 2 . . . 4 5 . . Brawler 2 | . . . . . . . 2 . . Duelist 2 | . . . . . . 1 1 . . Protector 1 | . . . . . . . 1 . . Sentry 6 | . . . . . 3 2 1 . . Specialist 2 | . . . . . . . . . 2 Hunter 4 | . . . . . 1 1 2 . . Programmer 3 | . . . . . . 2 1 . . Heavy 1 | . . . . . . 1 . . . Assembled 6 | . . . . . . . . . 6 Best Kill Streak 12 | . . 2 . . 4 5 12 . 6 Combat Bots Only 8 | . . 2 . . 3 3 8 . 6 Max Kills in Single Turn 5 | . . 1 . . 1 5 4 . 1 Gunslinging . | . . . . . . . . . . Exploded 2 | . . . . . . 2 1 . 1 Melee 1 | . . . . . . . 1 . . Uniques/NPCs Destroyed . | . . . . . . . . . . Combat | -11 -10 -10 -10 -9 -8 -7 -6 -5 -4 -------- Run | Yrd Mat Min Exi Min Mat Fac Fac Fac Fac Hostile Shots Fired 626 | . . 13 . . 20 98 245 . 250 Missed 190 | . . 2 . . 4 34 72 . 78 Damage Taken 8250 | . . 164 . . 216 892 2920 . 4058 Core 1474 | . . 16 . . 46 91 162 . 1159 Absorbed by Shields 14 | . . . . . . . . . 14 Redirected to Shielding 43 | . . . . . . . 43 . . Ignored by Resistances 37 | . . . . . . . . . 37 Core Remaining (%) 91 | 100 . . . 93 91 87 80 100 . Volleys Fired 87 | . 3 10 . . 1 . 57 . 16 Largest 3 | . 2 2 . . 1 . 3 . 3 Hottest 220 | . 70 70 . . 36 . 136 . 220 Shots Fired 292 | . 6 20 . . 28 82 122 . 34 Gun 245 | . 6 20 . . 27 82 90 . 20 Cannon 36 | . . . . . . . 23 . 13 Launcher 4 | . . . . . 1 . 2 . 1 Special 7 | . . . . . . . 7 . . Kinetic 214 | . 3 10 . . 27 82 75 . 17 Thermal 30 | . 3 10 . . . . 7 . 10 Explosive 4 | . . . . . 1 . 2 . 1 Electromagnetic 44 | . . . . . . . 38 . 6 Robot Hit Streak 18 | . 4 12 . . 18 17 8 . 6 Robot Miss Streak 9 | . 2 1 . . 2 2 9 . 4 Penetration Max 1 | . . . . . . . 1 . 1 Secondary Targets 1 | . . . . . . . 1 . . Max Gunslinging Chain 1 | . . . . . . . 1 . . Autonomous 110 | . . . . . 27 83 . . . Shots Hit Robots 225 | . 4 18 . . 23 65 92 . 23 Core Hits 121 | . 1 5 . . 6 29 58 . 22 Critical Kills . | . . . . . . . . . . Critical Parts Destroyed . | . . . . . . . . . . Critical Strikes 4 | . 1 2 . . . . 1 . . Burn 3 | . 1 2 . . . . . . . Corrupt 1 | . . . . . . . 1 . . Melee Attacks 15 | . . . . . . . 14 . 1 Impact . | . . . . . . . . . . Slashing 15 | . . . . . . . 14 . 1 Piercing . | . . . . . . . . . . Sneak Attacks . | . . . . . . . . . . Combat Hostiles . | . . . . . . . . . . Follow-up Attacks . | . . . . . . . . . . Damage Inflicted 6960 | . 48 229 . . 590 2568 2591 . 934 Guns 4083 | . 48 229 . . 590 1958 1005 . 253 Cannons 771 | . . . . . . . 397 . 374 Explosions 1728 | . . . . . . 610 822 . 296 Melee 300 | . . . . . . . 300 . . Ramming 11 | . . . . . . . . . 11 Kinetic 3682 | . 23 117 . . 590 1958 771 . 223 Thermal 1138 | . 25 112 . . . 610 96 . 295 Explosive 1089 | . . . . . . . 793 . 296 Electromagnetic 740 | . . . . . . . 631 . 109 Impact . | . . . . . . . . . . Slashing 300 | . . . . . . . 300 . . Piercing . | . . . . . . . . . . Highest Corruption 7 | . . . . . . 2 3 . 7 Average Corruption 4 | . . . . . . 1 2 . 6 Corruption Purged . | . . . . . . . . . . Corruption Blocked . | . . . . . . . . . . Effects 14 | . . . . . . 1 2 . 11 Message Errors 6 | . . . . . . 1 . . 5 Matter Fused 4 | . . . . . . . 1 . 3 Energy Discharges 1 | . . . . . . . . . 1 Data Loss (minor) 1 | . . . . . . . . . 1 Data Loss (major) 1 | . . . . . . . . . 1 Misfires 1 | . . . . . . . 1 . . Overload Shots . | . . . . . . . . . . Overflow Damage 193 | . . . . . . 159 34 . . Projectiles . | . . . . . . . . . . Explosions 161 | . . . . . . 159 2 . . Melee 32 | . . . . . . . 32 . . Knockbacks . | . . . . . . . . . . Impact . | . . . . . . . . . . Kinetic . | . . . . . . . . . . Secondary . | . . . . . . . . . . Self-Inflicted Damage 204 | . . . . . . . 144 . 60 Shots 3 | . . . . . . . 2 . 1 Rammed 3 | . . . . . . . . . 3 Targets Rammed 3 | . . . . . . . . . 3 Kicked . | . . . . . . . . . . Crushed . | . . . . . . . . . . Highest Temperature 380 | . 27 171 . . 1 15 380 . 235 Average Temperature 118 | . 14 90 . . 1 15 133 . 107 Received Heat Transfer 1697 | . . 90 . . 72 207 696 . 632 Effects 2 | . . . . . . . 2 . . Energy Bleed 2 | . . . . . . . 2 . . Siege Activations . | . . . . . . . . . . Robots Corrupted 4 | . . . . . . . 3 . 1 Combat Hostiles 4 | . . . . . . . 3 . 1 Parts Fried 7 | . . . . . . . 7 . . Impact Corruptions . | . . . . . . . . . . Robots Melted . | . . . . . . . . . . Combat Hostiles . | . . . . . . . . . . Parts Melted 3 | . . 2 . . . 1 . . . Heat Transferred 1509 | . 148 481 . . . 350 530 . . Parts Sabotaged . | . . . . . . . . . . Parts Stolen . | . . . . . . . . . . Parts Stripped . | . . . . . . . . . . Power Chain Reactions 1 | . . . . . . . 1 . . Alert | -11 -10 -10 -10 -9 -8 -7 -6 -5 -4 ------- Run | Yrd Mat Min Exi Min Mat Fac Fac Fac Fac Peak Influence 795 | . 44 71 . . 227 795 725 298 145 Initial 338 | . . 16 . . . 103 338 298 145 Average 264 | . 34 55 . . 54 578 473 298 94 Maximum Alert Level 3 | . . . . . 1 3 3 1 . Low Security (%) 55 | . 100 100 . 100 91 6 . . 100 Level 1 10 | . . . . . 8 . 30 100 . Level 2 31 | . . . . . . 78 68 . . Level 3 2 | . . . . . . 14 1 . . Level 4 . | . . . . . . . . . . Level 5 . | . . . . . . . . . . High Security . | . . . . . . . . . . Max Security . | . . . . . . . . . . Squads Dispatched 19 | . 2 . . . . 9 6 . 2 Investigation 3 | . 1 . . . . 2 . . . Extermination 2 | . . . . . . 1 1 . . Reinforcement 9 | . 1 . . . . 3 3 . 2 Assault 5 | . . . . . . 3 2 . . Garrison . | . . . . . . . . . . Intercept . | . . . . . . . . . . Searches Triggered . | . . . . . . . . . . Construction Impeded 1 | . . . . . . . 1 . . Haulers Reinforced . | . . . . . . . . . . Active Scanning Responses . | . . . . . . . . . . Cargo Convoy Interrupts . | . . . . . . . . . . Stealth | -11 -10 -10 -10 -9 -8 -7 -6 -5 -4 --------- Run | Yrd Mat Min Exi Min Mat Fac Fac Fac Fac Distress Signals 2 | . . . . . 2 . . . . Communications Jammed . | . . . . . . . . . . Distress Signals . | . . . . . . . . . . Times Spotted 86 | . 5 2 . . 6 19 22 . 32 Peak Tracking Total 12 | . 3 2 . . 5 6 6 . 12 Tactical Retreats 5 | . . . . . . 1 1 . 3 Traps | -11 -10 -10 -10 -9 -8 -7 -6 -5 -4 ------- Run | Yrd Mat Min Exi Min Mat Fac Fac Fac Fac Traps Triggered 5 | . 1 . . . . 2 . . 2 Indirectly . | . . . . . . . . . . Trap Hack Attempts . | . . . . . . . . . . Triggered . | . . . . . . . . . . Disarmed . | . . . . . . . . . . Reprogrammed . | . . . . . . . . . . Reused . | . . . . . . . . . . Traps Extracted . | . . . . . . . . . . Installed . | . . . . . . . . . . Triggered . | . . . . . . . . . . Machines | -11 -10 -10 -10 -9 -8 -7 -6 -5 -4 ---------- Run | Yrd Mat Min Exi Min Mat Fac Fac Fac Fac Machines Disabled 25 | . . . . . 2 19 4 . . Max in Single Turn 18 | . . . . . 1 18 1 . . Machines Repaired . | . . . . . . . . . . Machines Dismantled . | . . . . . . . . . . Machines Sabotaged . | . . . . . . . . . . Overloaded Fab Kills . | . . . . . . . . . . Hacking | -11 -10 -10 -10 -9 -8 -7 -6 -5 -4 --------- Run | Yrd Mat Min Exi Min Mat Fac Fac Fac Fac Machines Accessed 16 | . 1 1 4 . 2 4 3 . 1 Terminals 8 | . 1 1 . . 2 3 1 . . Fabricators 1 | . . . . . . . 1 . . Repair Stations . | . . . . . . . . . . Recycling Units 1 | . . . . . . . . . 1 Scanalyzers 1 | . . . . . . . 1 . . Garrison Access 1 | . . . . . . 1 . . . Total Hacks 67 | . 1 1 49 . 2 8 5 . 1 Successful 56 | . 1 1 49 . 1 3 1 . . Failed 11 | . . . . . 1 5 4 . 1 Catastrophic 1 | . . . . . . 1 . . . Database Lockouts . | . . . . . . . . . . Manual 2 | . . . 1 . . 1 . . . Terminals 11 | . 1 1 . . 2 5 2 . . Fabricators 1 | . . . . . . . 1 . . Repair Stations . | . . . . . . . . . . Recycling Units 1 | . . . . . . . . . 1 Scanalyzers 2 | . . . . . . . 2 . . Garrison Access 3 | . . . . . . 3 . . . Terminal Hacks 56 | . 1 1 49 . 1 3 1 . . Record 49 | . . . 49 . . . . . . Prototype ID Bank 1 | . . . . . . 1 . . . Terminal Index 1 | . . . . . 1 . . . . Locate Traps 2 | . . . . . . 1 1 . . Investigation Status 1 | . . . . . . 1 . . . Zone Layout 2 | . 1 1 . . . . . . . Fabricator Hacks . | . . . . . . . . . . Repair Station Hacks . | . . . . . . . . . . Recycling Unit Hacks . | . . . . . . . . . . Scanalyzer . | . . . . . . . . . . Garrison Access Hacks . | . . . . . . . . . . Unauthorized Hacks . | . . . . . . . . . . Terminals . | . . . . . . . . . . Fabricators . | . . . . . . . . . . Repair Stations . | . . . . . . . . . . Recycling Units . | . . . . . . . . . . Scanalyzers . | . . . . . . . . . . Garrison Access . | . . . . . . . . . . Data Cores Recovered 1 | . . . . . . 1 . . . Used . | . . . . . . . . . . Hacking Detections 8 | . 1 1 . . 1 2 3 . . Full Trace Events 1 | . . . . . . 1 . . . Feedback Events . | . . . . . . . . . . Feedback Blocked . | . . . . . . . . . . Robot Schematics Acquired . | . . . . . . . . . . Robots Built . | . . . . . . . . . . Authchips . | . . . . . . . . . . Time . | . . . . . . . . . . Total Robot Build Rating . | . . . . . . . . . . Part Schematics Acquired . | . . . . . . . . . . Parts Built . | . . . . . . . . . . Authchips . | . . . . . . . . . . Time . | . . . . . . . . . . Total Part Build Rating . | . . . . . . . . . . Parts Repaired . | . . . . . . . . . . Time . | . . . . . . . . . . Parts Recycled . | . . . . . . . . . . Recycled Matter . | . . . . . . . . . . Retrieved Matter . | . . . . . . . . . . Retrieved Components . | . . . . . . . . . . Parts Scanalyzed . | . . . . . . . . . . Part Schematics Acquired . | . . . . . . . . . . Parts Damaged . | . . . . . . . . . . Bothacking | -11 -10 -10 -10 -9 -8 -7 -6 -5 -4 ------------ Run | Yrd Mat Min Exi Min Mat Fac Fac Fac Fac Used RIF Installer . | . . . . . . . . . . Robots Hacked . | . . . . . . . . . . Non-combat . | . . . . . . . . . . Combat . | . . . . . . . . . . Robot Hacks Applied . | . . . . . . . . . . Relay Couplers Released . | . . . . . . . . . . Fabnet Peak Effective % . | . . . . . . . . . . Robots Rewired . | . . . . . . . . . . Allies Hacked . | . . . . . . . . . . Hacks Repelled . | . . . . . . . . . . Allies | -11 -10 -10 -10 -9 -8 -7 -6 -5 -4 -------- Run | Yrd Mat Min Exi Min Mat Fac Fac Fac Fac Total Allies . | . . . . . . . . . . Largest Group . | . . . . . . . . . . Highest-Rated Group . | . . . . . . . . . . Highest-Rated Ally . | . . . . . . . . . . Total Orders . | . . . . . . . . . . Ally Attacks 7 | . . . . . . . 7 . . Total Damage 330 | . . . . . . . 330 . . Kills 2 | . . . . . . . 2 . . Allies Corrupted . | . . . . . . . . . . Allies Melted . | . . . . . . . . . . Turrets Deployed 1 | . . . . . . . 1 . . Intel | -11 -10 -10 -10 -9 -8 -7 -6 -5 -4 ------- Run | Yrd Mat Min Exi Min Mat Fac Fac Fac Fac Robot Analysis Total . | . . . . . . . . . . Derelict Logs Recovered 2 | . . 2 . . . . . . . Drone Launches . | . . . . . . . . . . Drone Recoveries . | . . . . . . . . . . Exploration | -11 -10 -10 -10 -9 -8 -7 -6 -5 -4 ------------- Run | Yrd Mat Min Exi Min Mat Fac Fac Fac Fac Turns Passed 3194 | . 174 405 565 72 265 475 666 40 532 Spaces Moved 2514 | 1 101 362 601 68 224 409 323 34 391 Core 86 | . . . . . . . . . 86 Treads . | . . . . . . . . . . Legs 77 | 1 76 . . . . . . . . Wheels 2351 | . 25 362 601 68 224 409 323 34 305 Hover . | . . . . . . . . . . Flight . | . . . . . . . . . . Fastest Speed 50 | 120 90 90 90 100 100 100 100 100 50 Average Speed 95 | 120 112 90 91 100 100 100 100 100 89 Slowest Speed 120 | 120 120 90 100 100 100 100 100 100 100 Overloaded Moves . | . . . . . . . . . . Propulsion Burnouts . | . . . . . . . . . . Robots Hopped . | . . . . . . . . . . Cave-ins Triggered . | . . . . . . . . . . Exploration Rate (%) 28 | 2 24 69 92 22 28 20 10 2 13 Regions Visited 9 Branch Regions 3 Pre-discovered Areas 1 | . . . 1 . . . . . . Known Exits Taken 7 | . . 1 1 1 1 1 1 1 . Unknown Exits Taken 2 | 1 1 . . . . . . . . Scrap Searched 2 | . . 1 . 1 . . . . . Spaces Dug 16 | . . . . . 15 . . . 1 Terrain Destroyed 194 | . . . . . 32 67 84 . 11 Melee 1 | . . . . . . . . . 1 Projectile 52 | . . . . . 17 33 . . 2 AOE 140 | . . . . . 15 34 83 . 8 Terrain Rammed . | . . . . . . . . . . Walls Destroyed . | . . . . . . . . . . Machines Disabled . | . . . . . . . . . . Actions | -11 -10 -10 -10 -9 -8 -7 -6 -5 -4 --------- Run | Yrd Mat Min Exi Min Mat Fac Fac Fac Fac Total 3121 | . 155 420 617 71 265 483 532 39 539 Wait 284 | . 36 48 . . 12 25 83 . 80 Move 2505 | . 100 361 600 67 223 408 322 33 391 Hop . | . . . . . . . . . . Pick Up 110 | . 7 . 5 1 21 27 24 2 23 Fast Attach 4 | . 1 . 1 . . . . . 2 Attach 52 | . . . . . 5 6 22 2 17 Detach 3 | . . . . . 2 . 1 . . Swap 22 | . 3 1 3 2 . 2 5 2 4 Drop 36 | . 5 . 8 1 1 15 4 . 2 Fire 87 | . 3 10 . . 1 . 57 . 16 Melee 15 | . . . . . . . 14 . 1 Ram 3 | . . . . . . . . . 3 Kick . | . . . . . . . . . . Crush . | . . . . . . . . . . Escape Stasis . | . . . . . . . . . . Rewire . | . . . . . . . . . . Trap . | . . . . . . . . . . Miscellaneous . | . . . . . . . . . . Route ------- -11/Scrapyard -10/Materials -10/Mines (discovered 3 exits: *Mat x2 / *Exi) -10/Exiles (discovered 2 exits: *Min x2) -9/Mines -8/Materials -7/Factory -6/Factory -5/Factory -4/Factory History --------- Turn | Location | Event 1 | -11/Scrapyard | Discovered new exit (range 0) 1 | -11/Scrapyard | Entered Materials 168 | -10/Materials | Discovered new exit (range 9) 175 | -10/Materials | Entered Mines 252 | -10/Mines | Learned Materials garrison access intel 302 | -10/Mines | Build established: Mutant 304 | -10/Mines | Discovered new exit (range 11) 497 | -10/Mines | Learned location of 1 exit from Materials 510 | -10/Mines | Discovered new exit (range 7) 517 | -10/Mines | Identified exit to Materials 576 | -10/Mines | Deemed a non-threat by the Exiles lab entrance 576 | -10/Mines | Discovered new exit (range 5) 579 | -10/Mines | Identified exit to Exiles 580 | -10/Mines | Entered Exiles 607 | -10/Exiles | Met 8R-AWN 627 | -10/Exiles | Met EX-HEX 680 | -10/Exiles | Met EX-DEC 707 | -10/Exiles | Visited The Gauntlet 810 | -10/Exiles | Learned location of Zion (-6) 850 | -10/Exiles | Discovered new exit (range 14) 860 | -10/Exiles | Identified exit to Mines 956 | -10/Exiles | Met EX-BIN 968 | -10/Exiles | Aligned with FarCom system 969 | -10/Exiles | Given EX-Vault access code 1027 | -10/Exiles | Opened EX-Vault 1036 | -10/Exiles | Found Prototype Storage 1041 | -10/Exiles | Found Prototype Ballistic Gun 1041 | -10/Exiles | Identified AWS/Gauss 1046 | -10/Exiles | Found Deploy-a-Sentry 1048 | -10/Exiles | Found Deploy-a-Sentry 1069 | -10/Exiles | Warned to stay clear of 0b10 Research branches 1134 | -10/Exiles | Discovered exit to Mines (range 14) 1145 | -10/Exiles | Stole three prototypes: AWS/Gauss, Deploy-a-Sentry, Lightpack 2.0 1145 | -10/Exiles | Entered Mines 1186 | -9/Mines | A weapon hastily lodged in a ceiling crevice suddenly fell to the ground 1214 | -9/Mines | Discovered new exit (range 3) 1216 | -9/Mines | Identified exit to Materials 1217 | -9/Mines | Entered Materials 1217 | -8/Materials | Evolved 4 slots: Propulsion x2, Utility x2 1218 | -8/Materials | Identified exit to Factory 1219 | -8/Materials | Loaded intel: 1 garrison access location 1220 | -8/Materials | Identified Lightpack 2.0 1482 | -8/Materials | Entered Factory 1482 | -7/Factory | Evolved 2 slots: Utility x2 1484 | -7/Factory | FarCom data flow suspended 1525 | -7/Factory | Build established: Hauler-Mutant 1882 | -7/Factory | First assault squad dispatched 1941 | -7/Factory | Discovered new exit (range 16) 1956 | -7/Factory | Identified exit to Factory 1957 | -7/Factory | Entered another Factory area 1957 | -6/Factory | Evolved 2 slots: Utility x1, Weapon x1 2150 | -6/Factory | DAS Turret deployed 2246 | -6/Factory | Build established: Hauler-Skirmisher 2307 | -6/Factory | First assault squad dispatched 2370 | -6/Factory | Destroyed 8 combat bots 2425 | -6/Factory | Lost 6 parts (1p4u1w) 2549 | -6/Factory | Lost 12 parts (1p2n4u5w) 2607 | -6/Factory | Discovered new exit (range 14) 2619 | -6/Factory | Identified exit to Factory 2623 | -6/Factory | Entered another Factory area 2623 | -5/Factory | Evolved 2 slots: Utility x2 2646 | -5/Factory | Discovered new exit (range 14) 2658 | -5/Factory | Identified exit to Factory 2663 | -5/Factory | Entered another Factory area 2663 | -4/Factory | Evolved 2 slots: Propulsion x1, Utility x1 2884 | -4/Factory | Assembled infested ambush trap array 2947 | -4/Factory | Lost 8 parts (1p2n3u2w) 3057 | -4/Factory | Lost 4 parts (1p1u2w) 3132 | -4/Factory | Lost 5 parts (2n2u1w) 3145 | -4/Factory | Released all parts (7) 3148 | -4/Factory | Core integrity fell below 50% 3160 | -4/Factory | Core integrity fell below 20% 3171 | -4/Factory | Found Quantum Capacitor 3175 | -4/Factory | Lost 6 parts (1p2n1u2w) 3195 | -4/Factory | Destroyed by G-67 Veteran with Plasma Rifle Last Messages --------------- 03144_ Hvy. Neutron Cannon destroyed. 03145_ Released Imp. Corruption Screen. 03145_ Released Trap Scanner. 03145_ Released Lightpack 2.0. 03145_ Released Adv. Heat Sink. 03145_ Released Adv. Cryofiber Web. 03145_ Released Imp. Shield Generator. 03145_ Released Hvy. Neutron Cannon. 03146_ System corrupted: Component data lost. 03146_ Dropped Mic. Nuclear Core. 03147_ Acquired Hvy. Machine Gun. 03149_ Acquired 8 matter. 03155_ Acquired 142 matter. 03167_ System corrupted: Substantial component data lost. 03171_ Acquired Quantum Capacitor. 03172_ Dropped Quantum Capacitor. 03189_ System corrupted: Matter fused (-6). 03192_ Slammed into G-67 Veteran. 03195_ Critical hit (Burn: +37). 03195_ Critical hit (Burn: +50). Map ----- +----------------------------------------------------+ | ?????????????????????????????????????????????????? | | ?????????????????????????????????????????????????? | | ?????????????????????????????????????????????????? | | ?????????????????????????????????????????????????? | | ?????????????????????????????????????????????????? | | ?????????????????????????????????????????????????? | | ?????????????????????????????????????????????????? | | ?????????????????????????????????????????????????? | | ?????????????????????????????????????????????????? | | ?????????????????????????????????????????????????? | | ?????????????????????????????????????????????????? | | ???????????????????????????""?????""?????????????? | | ????????????????????????? """ """ """ ???????????? | | ????????????????????????? """ """ """ ???????????? | | ????????????????????????# #??????????? | | ????????????????????????# """ """ """ #??????????? | | ????????????????????????# """ """ """ #??????????? | | ????????????????????????? """ """ """ ???????????? | | ??????????????????????????? ?????????????? | | ?????????????????????????????! ???????????????? | | ????????????###################+#####????????????? | | ????????????# # #????????????? | | ????????????# """ """g""" # ########## ?? | | ????????????# """ """ """ # ?? | | ????????????# """ """ """g# " #?????? | | ????????????# gg g@g "T #?????? | | ????????????# """ """ """ # #?????? | | ????????????# """ """ """ # #?????? | | ????????????# """ """ """g# [!! ########?????? | | ????????????# g gg # !!= #????????????? | | ????????????#! !### [* ##############+? | | ????????????# #?# ![# | | ????????????###############?# !=# | | ????????????????????????????# / ] | | ????????????????????????????# # | | ????????????????????????????# # | | ????????????????????????????# #? [ ? | | ????????????????????????????# #? ] ? | | ????????????????????????????# #??###########?? | | ???????????????????????""" ## % ##############?? | | ???????????????????????""" ## !# #?? | | ??????????????????????? ?# !*!* #?? | | ??????????????????????? ??# ]=! # #?? | | #######################+##### [!]!# ! #?? | | !!]!!# !#?? | | !! ]# #?? | | !]]!" #?? | | */][# #?? | | % !# #?? | | #### ## #? #?? | +----------------------------------------------------+ Best States ------------- Heat Dissipation 81 Energy Generation 15 Energy Capacity 465 Matter Stores 300 Matter Capacity 300 Sight Range 16 Robot Scan Range 16 Terrain Scan Range 20 Terrain Scan Density 10 Corruption Block 15 Armor Coverage 750 Resistance: KI 20 Resistance: EM 15 Propulsion Shielding 33 Evasion (%) 55 Item Schematics ----------------- None Robot Schematics ------------------ None Fabricated ------------ Nothing Alien Tech Used ----------------- None Achievements -------------- It Was An Accident, I Swear Packrat Challenges ------------ None Game ------ Seed NullExplosiveMonowheel Manual? 0 Play Time 01:36:22 Cumulative 79.0 hours Start 2024.07.17 @ 20:15:26 End 2024.07.17 @ 22:09:05 Sessions 1 Manual Loads 0 Difficulty Rogue Special Mode None Game No. 39 Rogue 39 Adventurer 0 Explorer 0 Win Type - Total 0 Types 0/0/0/0/0/0/0/0/0 Lore% 24 Gallery% 44 Achievement% 30 Wizard Run 0 Options --------- Layout 0 ASCII 0 Keyboard 0 Movement Mouse Keybinds 0 Fullscreen 1 Font 18/SmallcapsGlow Map View 76x50 Zoom Use 0% Tactical HUD 1 Map Filters NONE Filters NONE Steam 1 RUN: 22f9dfc1-48e7-452f-9786-2f0e1683388d